Workbook

Sheet PLOT
A1: ProperSort | B1: (All)
A3: Row Labels | B3: ME-OTC | C3: NH | D3: VT | E3: CT | F3: MA | G3: RI | H3: DE | I3: DC | J3: MD | K3: NJ | L3: NY | M3: PA | N3: VA-OTC | O3: OTC
A4: 2015 | B4: 0.7653631061 | C4: 0.8330392157 | D4: 0.3543430532 | E4: 0.4433386949 | F4: 0.7473856735 | G4: 0.3559335717 | H4: 0.4402937595 | I4: 1.333149777 | J4: 0.9270377093 | K4: 0.3178061626 | L4: 1.014003437 | M4: 1.536076162 | N4: 0.7829341678 | O4: 0.9785228498
A5: 2016 | B5: 0.6663741155 | C5: 0.7716892928 | D5: 0.1118305511 | E5: 0.3961534852 | F5: 0.792494915 | G5: 0.2544810506 | H5: 0.3530940453 | I5: 1.039541872 | J5: 0.6639788037 | K5: 0.2753095094 | L5: 0.4546606917 | M5: 0.9369465411 | N5: 0.34497669 | O5: 0.6272731564
A6: 2017 | B6: 1.330271136 | C6: 0.8383120494 | D6: 0.2352822674 | E6: 0.2733850351 | F6: 0.6828013701 | G6: 0.2419289982 | H6: 0.2587148457 | I6: 1.008300183 | J6: 0.9620573032 | K6: 0.1660553925 | L6: 0.3311571518 | M6: 0.843355724 | N6: 0.3096536127 | O6: 0.6401618526
A7: 2018 | B7: 0.5139257946 | C7: 0.8922215811 | D7: 0.4097512296 | E7: 0.2404549229 | F7: 0.5642425698 | G7: 0.2727185514 | H7: 0.2494090563 | I7: 0.8460831997 | J7: 1.183910524 | K7: 0.3272305257 | L7: 0.242947563 | M7: 0.711990652 | N7: 0.5029976581 | O7: 0.5787309536
A8: 2019 | B8: 0.08826079467 | C8: 0.822623883 | D8: 0.3152988849 | E8: 0.2208616367 | F8: 0.3368114444 | G8: 0.2288398194 | H8: 0.2893942161 | I8: 0.6949228921 | J8: 0.8311079216 | K8: 0.3394076248 | L8: 0.234890037 | M8: 0.7393735247 | N8: 0.4156087777 | O8: 0.526393725
A9: 2020 | B9: 0.150112975 | C9: 0.8463449446 | D9: 0.3334479808 | E9: 0.2182234238 | F9: 0.2953754897 | G9: 0.1557185854 | H9: 0.2834332878 | I9: 0.9282709007 | J9: 0.3779309107 | K9: 0.5156792202 | L9: 0.2221770155 | M9: 0.5143491715 | N9: 0.2262355603 | O9: 0.4589939727
A10: 2021 | B10: 0.1150265205 | C10: 0.9736967099 | D10: 0.2766805905 | E10: 0.1925303265 | F10: 0.2739917404 | G10: 0.1599465306 | H10: 0.2801094315 | I10: 0.7206190768 | J10: 0.3474630898 | K10: 0.4252833406 | L10: 0.2309335396 | M10: 0.6468947613 | N10: 0.4173299101 | O10: 0.4867426069
A11: Grand Total | B11: 0.5203402901 | C11: 0.853906983 | D11: 0.2910145011 | E11: 0.2847255961 | F11: 0.5304011298 | G11: 0.239971086 | H11: 0.308821114 | I11: 0.9380230301 | J11: 0.7565962849 | K11: 0.3381551376 | L11: 0.3901324361 | M11: 0.8469031605 | N11: 0.4278715076 | O11: 0.613776005
O48: 1st day | P48: last day
O49: January 1 | P49: December 31
O50: ="Average Sulfur Dioxide 1-hr Concentrations "&TEXT(O49,"mmm d")&" - "&TEXT(P49,"mmm d")&" (2021 data are preliminary)" -> Average Sulfur Dioxide 1-hr Concentrations Jan 1 - Dec 31 (2021 data are preliminary)
A52: Click on the CALCULATE MACRO to update the % change between years table below:
A53: CALCULATE MACRO
A55: Row Labels | B55: =IF(B64="","",B64) -> ME-OTC | C55: =IF(C64="","",C64) -> NH | D55: VT | E55: CT | F55: MA | G55: RI | H55: DE | I55: DC | J55: MD | K55: NJ | L55: NY | M55: PA | N55: VA-OTC | O55: OTC
A56: 2020/2014-100% | B56: =IF(B71="","",IF(B65="","",B71/B65-100%)) -> -0.8497098703 | C56: =IF(C71="","",IF(C65="","",C71/C65-100%)) -> 0.1688485867 | D56: -0.2191730922 | E56: -0.5657263199 | F56: -0.633399796 | G56: -0.5506281416 | H56: -0.363812397 | I56: -0.459461278 | J56: -0.6251899072 | K56: 0.3381846882 | L56: -0.7722556639 | M56: -0.5788654383 | N56: -0.4669667932 | O56: -0.5025741024 | Q56: =IF($B$70="","",IF(Q65="","",$B$70/Q65-100%)) -> 
A57: 2020/2015-100% | B57: =IF(B71="","",IF(B66="","",B71/B66-100%)) -> -0.8273844709 | C57: =IF(C71="","",IF(C66="","",C71/C66-100%)) -> 0.2617729946 | D57: 1.47410558 | E57: -0.5140006746 | F57: -0.6542668789 | G57: -0.3714796045 | H57: -0.2067002115 | I57: -0.3067916779 | J57: -0.4766955092 | K57: 0.5447462806 | L57: -0.492074983 | M57: -0.3095713225 | N57: 0.2097336495 | O57: -0.224034056
A58: 2020/2016-100% | B58: =IF(B71="","",IF(B67="","",B71/B67-100%)) -> -0.913531522 | C58: =IF(C71="","",IF(C67="","",C71/C67-100%)) -> 0.1614967369 | D58: 0.175951735 | E58: -0.2957539667 | F58: -0.5987240911 | G58: -0.3388699504 | H58: 0.0826956247 | I58: -0.2853129563 | J58: -0.6388332705 | K58: 1.561093225 | L58: -0.302646679 | M58: -0.2329514784 | N58: 0.3477314427 | O58: -0.2396569634
A59: 2020/2017-100% | B59: =IF(B71="","",IF(B68="","",B71/B68-100%)) -> -0.7761806827 | C59: =IF(C71="","",IF(C68="","",C71/C68-100%)) -> 0.09131714652 | D59: -0.3247595844 | E59: -0.1993080274 | F59: -0.5144078893 | G59: -0.413510633 | H59: 0.1230924635 | I59: -0.1482881624 | J59: -0.7065123734 | K59: 0.2996444623 | L59: -0.04945109661 | M59: -0.0914280132 | N59: -0.1703144072 | O59: -0.1589483786
A60: 2020/2018-100% | B60: =IF(B71="","",IF(B69="","",B71/B69-100%)) -> 0.3032572496 | C60: =IF(C71="","",IF(C69="","",C71/C69-100%)) -> 0.1836475089 | D60: -0.1224815445 | E60: -0.1282762846 | F60: -0.1865129735 | G60: -0.3010546375 | H60: -0.03208351844 | I60: 0.03697703006 | J60: -0.581927833 | K60: 0.25301646 | L60: -0.01684404105 | M60: -0.1250771908 | N60: 0.004141232111 | O60: -0.07532597019
A61: 2020/2019-100% | B61: =IF(B71="","",IF(B70="","",B71/B70-100%)) -> -0.2337336563 | C61: =IF(C71="","",IF(C70="","",C71/C70-100%)) -> 0.1504726484 | D61: -0.1702436169 | E61: -0.1177375777 | F61: -0.07239513794 | G61: 0.02715119168 | H61: -0.01172712054 | I61: -0.2236974398 | J61: -0.08061743582 | K61: -0.175294788 | L61: 0.03941237626 | M61: 0.257695739 | N61: 0.8446698192 | O61: 0.06045533463
A64: Row Labels | B64: ME-OTC | C64: NH | D64: VT | E64: CT | F64: MA | G64: RI | H64: DE | I64: DC | J64: MD | K64: NJ | L64: NY | M64: PA | N64: VA-OTC | O64: OTC
A65: 2015 | B65: 0.7653631061 | C65: 0.8330392157 | D65: 0.3543430532 | E65: 0.4433386949 | F65: 0.7473856735 | G65: 0.3559335717 | H65: 0.4402937595 | I65: 1.333149777 | J65: 0.9270377093 | K65: 0.3178061626 | L65: 1.014003437 | M65: 1.536076162 | N65: 0.7829341678 | O65: 0.9785228498
A66: 2016 | B66: 0.6663741155 | C66: 0.7716892928 | D66: 0.1118305511 | E66: 0.3961534852 | F66: 0.792494915 | G66: 0.2544810506 | H66: 0.3530940453 | I66: 1.039541872 | J66: 0.6639788037 | K66: 0.2753095094 | L66: 0.4546606917 | M66: 0.9369465411 | N66: 0.34497669 | O66: 0.6272731564
A67: 2017 | B67: 1.330271136 | C67: 0.8383120494 | D67: 0.2352822674 | E67: 0.2733850351 | F67: 0.6828013701 | G67: 0.2419289982 | H67: 0.2587148457 | I67: 1.008300183 | J67: 0.9620573032 | K67: 0.1660553925 | L67: 0.3311571518 | M67: 0.843355724 | N67: 0.3096536127 | O67: 0.6401618526
A68: 2018 | B68: 0.5139257946 | C68: 0.8922215811 | D68: 0.4097512296 | E68: 0.2404549229 | F68: 0.5642425698 | G68: 0.2727185514 | H68: 0.2494090563 | I68: 0.8460831997 | J68: 1.183910524 | K68: 0.3272305257 | L68: 0.242947563 | M68: 0.711990652 | N68: 0.5029976581 | O68: 0.5787309536
A69: 2019 | B69: 0.08826079467 | C69: 0.822623883 | D69: 0.3152988849 | E69: 0.2208616367 | F69: 0.3368114444 | G69: 0.2288398194 | H69: 0.2893942161 | I69: 0.6949228921 | J69: 0.8311079216 | K69: 0.3394076248 | L69: 0.234890037 | M69: 0.7393735247 | N69: 0.4156087777 | O69: 0.526393725
A70: 2020 | B70: 0.150112975 | C70: 0.8463449446 | D70: 0.3334479808 | E70: 0.2182234238 | F70: 0.2953754897 | G70: 0.1557185854 | H70: 0.2834332878 | I70: 0.9282709007 | J70: 0.3779309107 | K70: 0.5156792202 | L70: 0.2221770155 | M70: 0.5143491715 | N70: 0.2262355603 | O70: 0.4589939727
A71: 2021 | B71: 0.1150265205 | C71: 0.9736967099 | D71: 0.2766805905 | E71: 0.1925303265 | F71: 0.2739917404 | G71: 0.1599465306 | H71: 0.2801094315 | I71: 0.7206190768 | J71: 0.3474630898 | K71: 0.4252833406 | L71: 0.2309335396 | M71: 0.6468947613 | N71: 0.4173299101 | O71: 0.4867426069

Sheet HOURLY

Sheet Sheet1
E1: LAST DATE
A2: Code | B2: State | C2: PARSED | D2: SEQUENTIAL | E2: 2020 AQS COMPLETE
A3: 9 | B3: Connecticut | E3: 2022-10-31
A4: 10 | B4: Delaware | E4: 2020-06-30
A5: 11 | B5: DC | E5: 2022-12-31
A6: 23 | B6: Maine | E6: 2022-12-31
A7: 24 | B7: Maryland | E7: 2022-12-31
A8: 25 | B8: Massachusetts | E8: 2022-10-31
A9: 33 | B9: New Hampshire | E9: 2022-12-31
A10: 34 | B10: New Jersey | E10: 2022-12-31
A11: 36 | B11: New York | E11: 2022-12-31
A12: 42 | B12: Pennsylvania | E12: 2022-11-30
A13: 44 | B13: Rhode Island | E13: 2022-12-31
A14: 50 | B14: Vermont | E14: 2022-12-31
A15: 51 | B15: Virginia OTC | E15: 2022-12-31
